bitfinex/quotes_SOLUSD_20250106
["timestamp","ask_amount","ask_price","bid_price","bid_amount"]
[1736188352983,13.7238658,219.3,219.24,13.7238658]
[1736188353505,13.7238658,219.3,219.27,20.0]
[1736188353671,13.7238658,219.31,219.27,20.0]
[1736188354600,13.7238658,219.3,219.24,13.7238658]
[1736188354971,13.7238658,219.31,219.25,33.7238658]
[1736188356101,37.5007498,219.3,219.23,13.7238658]
[1736188356301,13.7238658,219.24,219.17,13.7238658]
[1736188356511,13.7238658,219.23,219.17,13.7238658]
[1736188357008,15.8438658,219.24,219.17,13.7238658]
[1736188357503,2.12,219.24,219.19,13.7238658]
[1736188357673,2.12,219.24,219.2,13.7238658]
[1736188358370,2.12,219.24,219.19,13.7238658]
[1736188358795,15.8438658,219.24,219.17,45.1304658]
[1736188359007,13.7238658,219.23,219.17,45.1304658]
[1736188359191,13.7238658,219.22,219.16,1.5249]
[1736188359998,13.7238658,219.22,219.18,20.0]
[1736188360500,13.7238658,219.22,219.19,20.0]
[1736188360707,13.7238658,219.23,219.19,20.0]
[1736188361404,15.8438658,219.24,219.18,13.7238658]
[1736188361782,2.12,219.24,219.2,13.7238658]
[1736188363504,2.12,219.24,219.19,13.7238658]
[1736188363717,2.12,219.24,219.2,13.7238658]
[1736188364415,2.12,219.24,219.19,13.7238658]
[1736188367422,2.12,219.24,219.18,25.1299658]
[1736188367716,15.8438658,219.24,219.18,11.4061]
[1736188368117,15.8438658,219.24,219.18,25.1299658]
[1736188368435,2.12,219.24,219.18,25.1299658]
[1736188368579,15.8438658,219.24,219.18,25.1299658]
[1736188368786,13.7238658,219.23,219.18,11.4061]
[1736188369890,15.8438658,219.24,219.18,25.1299658]
[1736188370089,2.12,219.23,219.18,25.1299658]
[1736188371310,2.12,219.23,219.19,13.7238658]
[1736188372108,2.12,219.23,219.18,25.1299658]
[1736188372920,2.12,219.23,219.18,11.4061]
[1736188374323,2.12,219.23,219.2,13.7238658]
[1736188374628,2.12,219.23,219.21,13.7238658]
[1736188375131,2.12,219.23,219.19,13.7238658]
[1736188375327,2.12,219.23,219.18,25.1299658]
[1736188375528,2.12,219.23,219.18,11.4061]
[1736188376030,15.8438658,219.23,219.18,11.4061]
[1736188378327,2.12,219.23,219.18,11.4061]
[1736188378703,2.12,219.23,219.18,25.1299658]
[1736188378904,2.12,219.23,219.18,11.4061]
[1736188379631,2.12,219.23,219.18,25.1299658]
[1736188380097,2.12,219.23,219.19,13.7238658]
[1736188382121,2.12,219.23,219.18,25.1299658]
[1736188382427,15.8438658,219.23,219.18,11.4061]
[1736188382629,13.7238658,219.22,219.15,25.1314658]
[1736188382836,13.7238658,219.21,219.15,25.1314658]
[1736188383136,13.7238658,219.21,219.18,20.0]
[1736188383626,13.7238658,219.21,219.15,11.4076]
[1736188384309,13.7238658,219.2,219.13,13.7238658]
[1736188384511,13.7238658,219.2,219.14,13.7238658]
[1736188385228,2.12,219.23,219.09,11.4107]
[1736188385229,13.7238658,219.17,219.09,11.4107]
[1736188385427,13.7238658,219.18,219.12,13.7238658]
[1736188385627,13.7238658,219.19,219.12,13.7238658]
[1736188385800,13.7238658,219.2,219.13,13.7238658]
[1736188386131,13.7238658,219.2,219.14,13.7238658]
[1736188386500,13.7238658,219.21,219.15,13.7238658]
[1736188386816,15.8438658,219.23,219.16,13.7238658]
[1736188387022,2.12,219.23,219.18,13.7238658]
[1736188387228,2.12,219.23,219.2,13.7238658]
[1736188387432,2.12,219.24,219.2,13.7238658]
[1736188387937,2.12,219.24,219.21,13.7238658]
[1736188389045,13.7238658,219.3,219.23,13.7238658]
[1736188389246,13.7238658,219.31,219.25,13.7238658]
[1736188389542,6.2892,219.33,219.3,13.7238658]
[1736188389543,2.12,219.33,219.3,13.7238658]
[1736188389745,20.2630658,219.38,219.32,13.7238658]
[1736188389908,2.12,219.38,219.35,13.7238658]
[1736188390106,2.12,219.38,219.34,13.7238658]
[1736188390311,2.12,219.38,219.27,0.68383835]
[1736188390312,20.82175947,219.4,219.33,13.7238658]
[1736188390543,2.12,219.38,219.35,13.7238658]
[1736188390750,2.12,219.39,219.35,13.7238658]
[1736188392038,13.7238658,219.41,219.35,13.7238658]
[1736188392335,2.12,219.4,219.35,13.7238658]
[1736188392945,15.8438658,219.4,219.34,13.7238658]
[1736188393943,2.12,219.4,219.35,13.7238658]
[1736188396562,2.12,219.4,219.34,13.7238658]
[1736188396563,15.8438658,219.4,219.34,13.7238658]
[1736188396858,2.12,219.4,219.34,13.7238658]
[1736188397058,2.12,219.4,219.35,13.7238658]
[1736188397836,2.12,219.4,219.34,13.7238658]
[1736188398060,15.8438658,219.4,219.34,13.7238658]
[1736188398970,15.8438658,219.4,219.3,13.7238658]
[1736188398971,13.7238658,219.36,219.3,13.7238658]
[1736188399134,13.7238658,219.35,219.29,13.7238658]
[1736188399334,13.7238658,219.34,219.29,20.0]
[1736188399534,13.7238658,219.34,219.28,13.7238658]
[1736188400043,13.7238658,219.35,219.29,13.7238658]
[1736188400331,13.7238658,219.34,219.28,13.7238658]
[1736188400536,13.7238658,219.31,219.25,13.7238658]
[1736188400767,15.8438658,219.31,219.25,13.7238658]
[1736188401361,2.12,219.31,219.26,13.7238658]
[1736188402033,2.12,219.31,219.27,13.7238658]
[1736188402567,2.12,219.31,219.24,1.6566]
[1736188402568,2.12,219.31,219.29,13.7238658]
[1736188402748,2.12,219.31,219.3,13.7238658]
[1736188403264,2.12,219.35,219.3,13.7238658]
[1736188403435,2.12,219.35,219.31,13.7238658]
[1736188404435,2.12,219.35,219.34,13.7238658]
[1736188411049,2.12,219.39,219.34,13.7238658]
[1736188411367,37.5007498,219.43,219.36,13.7238658]
[1736188411574,2.12,219.4,219.36,13.7238658]
[1736188412145,2.12,219.4,219.35,13.7238658]
[1736188413778,7.09789367,219.56,219.42,20.0]
[1736188413988,7.09789367,219.56,219.51,13.7238658]
[1736188414282,7.09789367,219.56,219.52,13.7238658]
[1736188414441,13.7238658,219.54,219.47,15.2813658]
[1736188414647,13.7238658,219.52,219.46,13.7238658]
[1736188414868,13.7238658,219.53,219.46,13.7238658]
[1736188415270,13.7238658,219.54,219.47,13.7238658]
[1736188415478,13.7238658,219.55,219.49,13.7238658]
[1736188415773,0.9759,219.65,219.51,13.7238658]
[1736188415774,2.12,219.56,219.51,13.7238658]
[1736188416681,13.7238658,219.55,219.48,13.7238658]
[1736188416851,15.8438658,219.56,219.49,13.7238658]
[1736188417447,13.7238658,219.55,219.48,13.7238658]
[1736188417673,13.7238658,219.55,219.49,13.7238658]
[1736188418180,15.8438658,219.56,219.49,13.7238658]
[1736188418482,13.7238658,219.55,219.49,13.7238658]
[1736188418681,37.5007498,219.55,219.48,13.7238658]
[1736188418979,13.7238658,219.52,219.46,33.7238658]
[1736188419362,13.7238658,219.5,219.46,20.0]
[1736188419545,13.7238658,219.49,219.43,13.7238658]
[1736188420069,13.7238658,219.5,219.44,13.7238658]
[1736188420781,13.7238658,219.49,219.42,13.7238658]
[1736188421185,15.8438658,219.49,219.42,13.7238658]
[1736188421471,15.8438658,219.49,219.43,13.7238658]
[1736188421882,13.7238658,219.48,219.42,33.7238658]
[1736188422380,13.7238658,219.48,219.42,20.0]
[1736188422956,2.12,219.49,219.4,13.7238658]
[1736188422957,13.7238658,219.46,219.4,13.7238658]
[1736188423447,13.7238658,219.47,219.41,13.7238658]
[1736188424354,15.8438658,219.49,219.43,13.7238658]
[1736188424557,2.12,219.49,219.44,13.7238658]
[1736188425161,2.12,219.49,219.39,11.3948]
[1736188425162,15.8438658,219.49,219.43,13.7238658]
[1736188426075,13.7238658,219.44,219.36,1.621]
[1736188426273,13.7238658,219.41,219.36,1.621]
[1736188426581,2.12,219.4,219.39,13.7238658]
[1736188426781,13.7238658,219.46,219.39,13.7238658]
[1736188426990,2.12,219.4,219.37,20.0]
[1736188427156,2.12,219.42,219.37,20.0]
[1736188427488,2.12,219.42,219.4,13.7238658]
[1736188427972,15.8438658,219.42,219.39,20.0]
[1736188428289,15.8438658,219.42,219.36,13.7238658]
[1736188428584,2.12,219.42,219.37,13.7238658]
[1736188428782,2.12,219.42,219.38,13.7238658]
[1736188428957,2.12,219.42,219.36,20.0]
[1736188428958,2.12,219.42,219.4,13.7238658]
[1736188429158,2.12,219.42,219.39,13.7238658]
[1736188429377,2.12,219.42,219.38,13.7238658]
[1736188431889,2.12,219.42,219.37,13.7238658]
[1736188432794,2.12,219.42,219.38,13.7238658]
[1736188433571,13.7238658,219.44,219.38,13.7238658]
[1736188433887,2.12,219.43,219.38,13.7238658]
[1736188434275,2.12,219.42,219.38,13.7238658]
[1736188434489,2.12,219.42,219.36,33.7238658]
[1736188435070,15.8438658,219.42,219.36,20.0]
[1736188435270,13.7238658,219.41,219.35,13.7238658]
[1736188436287,15.8438658,219.42,219.35,13.7238658]
[1736188436794,15.8438658,219.42,219.36,13.7238658]
[1736188440397,2.12,219.42,219.37,13.7238658]
[1736188441999,2.12,219.42,219.36,13.7238658]
[1736188443106,15.8438658,219.42,219.36,13.7238658]
[1736188443469,17.8618,219.49,219.41,13.7238658]
[1736188443470,20.1956658,219.49,219.41,13.7238658]
[1736188443693,2.12,219.48,219.42,13.7238658]
[1736188443878,15.8438658,219.48,219.42,13.7238658]
[1736188445167,15.8438658,219.48,219.41,13.7238658]
[1736188445397,13.7238658,219.47,219.41,13.7238658]
[1736188446072,13.7238658,219.45,219.39,13.7238658]
[1736188446398,23.776884,219.47,219.39,13.7238658]
[1736188446399,13.7238658,219.46,219.39,13.7238658]
[1736188446606,23.776884,219.47,219.34,13.723866]
[1736188446607,13.7238658,219.45,219.38,13.7238658]
[1736188446778,13.7238658,219.43,219.36,13.7238658]
[1736188446985,13.7238658,219.43,219.37,13.7238658]
[1736188447796,13.7238658,219.44,219.38,13.7238658]
[1736188447971,13.7238658,219.45,219.39,13.7238658]
[1736188448169,13.7238658,219.47,219.4,13.7238658]
[1736188448712,13.7238658,219.46,219.4,13.7238658]
[1736188450007,37.5007498,219.47,219.4,13.7238658]
[1736188450205,13.7238658,219.46,219.4,13.7238658]
[1736188450510,23.776884,219.47,219.38,13.7238658]
[1736188450511,13.7238658,219.44,219.38,13.7238658]
[1736188450702,13.7238658,219.44,219.37,33.7238658]
[1736188451027,13.7238658,219.45,219.38,13.7238658]
[1736188451409,13.7238658,219.45,219.39,13.7238658]
[1736188451578,23.776884,219.45,219.39,13.7238658]
[1736188451779,13.7238658,219.47,219.41,13.7238658]
[1736188452004,15.8438658,219.48,219.41,13.7238658]
[1736188452501,13.7238658,219.47,219.41,13.7238658]
[1736188453486,15.8438658,219.48,219.41,13.7238658]
[1736188453682,2.12,219.48,219.42,13.7238658]
[1736188454083,2.12,219.48,219.43,13.7238658]
[1736188454282,2.12,219.48,219.37,31.3961]
[1736188454283,2.12,219.47,219.46,13.7238658]
[1736188454481,13.7238658,219.55,219.46,13.7238658]
[1736188454710,15.8438658,219.54,219.47,13.7238658]
[1736188454894,13.7238658,219.52,219.46,13.7238658]
[1736188455714,37.5007498,219.51,219.45,13.7238658]
[1736188456484,13.7238658,219.5,219.43,13.7238658]
[1736188456681,37.5007498,219.49,219.42,13.7238658]
[1736188456993,13.7238658,219.49,219.43,13.7238658]
[1736188457207,13.7238658,219.51,219.45,13.7238658]
[1736188457405,33.7238658,219.52,219.46,13.7238658]
[1736188457917,23.776884,219.51,219.46,13.7238658]
[1736188458231,13.7238658,219.53,219.46,13.7238658]
[1736188458586,13.7238658,219.52,219.46,13.7238658]
[1736188458817,13.7238658,219.52,219.45,13.7238658]
[1736188458998,13.7238658,219.5,219.43,13.7238658]
[1736188459187,13.7238658,219.49,219.42,33.7238658]
[1736188459390,13.7238658,219.48,219.41,13.7238658]
[1736188459703,13.7238658,219.5,219.43,13.7238658]
[1736188459911,23.776884,219.49,219.43,13.7238658]
[1736188460108,23.776884,219.49,219.42,13.7238658]
[1736188460109,13.7238658,219.49,219.42,13.7238658]
[1736188461418,13.7238658,219.48,219.42,13.7238658]
[1736188462287,2.12,219.47,219.42,13.7238658]
[1736188463218,13.7238658,219.48,219.42,13.7238658]
[1736188463417,15.8438658,219.47,219.4,13.7238658]
[1736188463605,13.7238658,219.46,219.39,33.7238658]
[1736188463921,13.7238658,219.44,219.37,13.7238658]
[1736188464221,2.12,219.47,219.35,13.7238658]
[1736188464222,13.7238658,219.42,219.35,13.7238658]
[1736188465726,13.7238658,219.42,219.36,33.7238658]
[1736188466897,37.5007498,219.46,219.39,13.7238658]
[1736188467101,23.776884,219.46,219.4,13.7238658]
[1736188467399,23.776884,219.46,219.35,31.3968]
[1736188467400,37.5007498,219.46,219.39,13.7238658]
[1736188467720,13.7238658,219.45,219.39,13.7238658]
[1736188467908,2.12,219.44,219.39,13.7238658]
[1736188468099,2.12,219.44,219.38,13.7238658]
[1736188469426,13.7238658,219.45,219.38,13.7238658]
[1736188469726,2.12,219.43,219.38,13.7238658]
[1736188470932,2.12,219.43,219.39,13.7238658]
[1736188471437,2.12,219.43,219.4,13.7238658]
[1736188471732,12.3658,219.5,219.41,13.7238658]
[1736188471733,13.7238658,219.48,219.41,13.7238658]
[1736188472040,20.86759394,219.52,219.45,13.7238658]
[1736188472348,2.12,219.51,219.46,13.7238658]
[1736188473831,23.776884,219.51,219.46,13.7238658]
[1736188474042,2.12,219.5,219.45,13.7238658]
[1736188475939,2.12,219.5,219.46,13.7238658]
[1736188478338,2.12,219.5,219.45,13.7238658]
[1736188478718,2.12,219.5,219.44,13.7238658]
[1736188479043,2.12,219.5,219.45,13.7238658]
[1736188479941,2.12,219.49,219.45,13.7238658]
[1736188480434,2.12,219.49,219.44,13.7238658]
[1736188481141,2.12,219.49,219.44,8.77372425]
[1736188481437,2.12,219.49,219.45,8.77372425]
[1736188482340,2.12,219.49,219.44,8.77372425]
[1736188488121,10.89372425,219.49,219.42,8.77372425]
[1736188488417,8.77372425,219.48,219.42,20.0]
[1736188488941,8.77372425,219.47,219.42,20.0]
[1736188489129,8.77372425,219.47,219.43,20.0]
[1736188489637,8.77372425,219.47,219.4,8.77372425]
[1736188490457,8.77372425,219.45,219.38,8.77372425]
[1736188490740,8.77372425,219.46,219.39,28.77372425]
[1736188490913,8.77372425,219.47,219.41,8.77372425]
[1736188491316,8.77372425,219.48,219.42,8.77372425]
[1736188493316,8.77372425,219.47,219.41,8.77372425]
[1736188493519,8.77372425,219.48,219.42,8.77372425]
[1736188498633,10.89372425,219.49,219.42,8.77372425]
[1736188498832,10.89372425,219.49,219.39,20.0]
[1736188499046,10.89372425,219.49,219.42,8.77372425]
[1736188499256,7.14372814,219.54,219.44,8.77372425]
[1736188499430,8.77372425,219.52,219.44,8.77372425]
[1736188500136,2.12,219.51,219.44,8.77372425]
[1736188500957,8.77372425,219.5,219.44,8.77372425]
[1736188501824,10.89372425,219.51,219.44,8.77372425]
[1736188502150,2.12,219.51,219.45,8.77372425]
[1736188502354,2.12,219.5,219.47,8.77372425]
[1736188502575,16.89335239,219.56,219.49,8.77372425]
[1736188502853,16.89335239,219.56,219.42,1.6529]
[1736188502854,8.77372425,219.56,219.5,8.77372425]
[1736188503024,2.12,219.55,219.51,8.77372425]
[1736188503219,2.12,219.54,219.51,8.77372425]
[1736188503425,2.12,219.53,219.52,8.77372425]
[1736188504055,2.12,219.53,219.51,8.77372425]
[1736188504231,7.14372814,219.59,219.52,8.77372425]
[1736188504429,2.12,219.58,219.54,8.77372425]
[1736188504630,7.14372814,219.59,219.55,8.77372425]
[1736188504938,2.12,219.58,219.55,8.77372425]
[1736188506151,2.12,219.58,219.53,8.77372425]
[1736188506332,2.12,219.58,219.52,8.77372425]
[1736188507028,2.12,219.58,219.53,8.77372425]
[1736188508192,2.12,219.58,219.52,8.77372425]
[1736188508975,8.77372425,219.57,219.51,8.77372425]
[1736188509192,8.77372425,219.56,219.5,8.77372425]
[1736188509489,8.77372425,219.57,219.5,8.77372425]
[1736188510465,10.89372425,219.58,219.51,8.77372425]
[1736188510672,2.12,219.58,219.53,8.77372425]
[1736188511092,2.12,219.58,219.54,8.77372425]
[1736188511391,2.12,219.58,219.55,8.77372425]
[1736188512184,2.12,219.58,219.54,8.77372425]
[1736188512371,2.12,219.58,219.52,8.77372425]
[1736188513091,10.89372425,219.58,219.51,8.77372425]
[1736188513620,10.89372425,219.58,219.48,21.6231]
[1736188513621,8.77372425,219.57,219.5,8.77372425]
[1736188513768,23.776884,219.56,219.5,8.77372425]
[1736188513956,8.77372425,219.54,219.48,8.77372425]
[1736188514157,8.77372425,219.54,219.47,8.77372425]
[1736188514358,8.77372425,219.54,219.48,8.77372425]
[1736188514594,8.77372425,219.55,219.48,8.77372425]
[1736188514901,8.77372425,219.54,219.47,28.77372425]
[1736188516373,8.77372425,219.52,219.46,8.77372425]
[1736188516570,8.77372425,219.51,219.45,20.0]
[1736188516890,2.12,219.5,219.45,20.0]
[1736188518085,2.12,219.5,219.44,8.77372425]
[1736188518620,10.89372425,219.5,219.44,8.77372425]
[1736188518796,2.12,219.5,219.45,8.77372425]
[1736188518999,2.12,219.5,219.46,8.77372425]
[1736188519372,2.12,219.5,219.47,8.77372425]
[1736188520499,2.12,219.5,219.46,8.77372425]
[1736188520697,2.12,219.5,219.45,8.77372425]
[1736188520991,2.12,219.5,219.46,8.77372425]
[1736188521678,2.12,219.5,219.47,8.77372425]
[1736188521876,2.12,219.5,219.48,8.77372425]
[1736188522197,2.12,219.5,219.49,8.77372425]
[1736188528910,2.12,219.5,219.48,8.77372425]
[1736188529204,0.9759,219.58,219.49,8.77372425]
[1736188529205,23.776884,219.57,219.49,8.77372425]
[1736188529373,8.77372425,219.55,219.49,8.77372425]
[1736188530509,10.89372425,219.56,219.5,8.77372425]
[1736188530807,2.12,219.56,219.51,8.77372425]
[1736188531102,2.12,219.56,219.47,20.0]
[1736188531103,2.12,219.55,219.52,8.77372425]
[1736188532716,2.12,219.55,219.51,8.77372425]
[1736188533399,2.12,219.54,219.51,8.77372425]
[1736188533706,2.12,219.54,219.45,35.094897]
[1736188533707,2.12,219.54,219.5,8.77372425]
[1736188535912,2.12,219.54,219.49,8.77372425]
[1736188536112,10.89372425,219.54,219.47,28.77372425]
[1736188536610,8.77372425,219.52,219.47,20.0]
[1736188536785,8.77372425,219.51,219.45,8.77372425]
[1736188537209,8.77372425,219.5,219.44,20.0]
[1736188537510,8.77372425,219.5,219.43,10.36322425]
[1736188538488,8.77372425,219.49,219.43,10.36322425]
[1736188538684,8.77372425,219.48,219.42,8.77372425]
[1736188538896,8.77372425,219.47,219.4,8.77372425]
[1736188539101,8.77372425,219.45,219.38,10.39402425]
[1736188539305,8.77372425,219.45,219.39,8.77372425]
[1736188540407,8.77372425,219.45,219.38,8.77372425]
[1736188541626,2.12,219.46,219.39,8.77372425]
[1736188541812,10.89372425,219.46,219.39,8.77372425]
[1736188542311,8.77372425,219.45,219.38,8.77372425]
[1736188542617,2.12,219.46,219.39,8.77372425]
[1736188542618,10.89372425,219.46,219.39,8.77372425]
[1736188545517,10.89372425,219.46,219.4,8.77372425]
[1736188546714,10.89372425,219.46,219.39,8.77372425]
[1736188548124,10.89372425,219.46,219.4,8.77372425]
[1736188548418,2.12,219.46,219.4,8.77372425]
[1736188548637,2.12,219.46,219.41,8.77372425]
[1736188551425,2.12,219.46,219.34,47.17576363]
[1736188551426,2.12,219.46,219.4,8.77372425]
[1736188552099,10.89372425,219.46,219.4,8.77372425]
[1736188552330,10.89372425,219.46,219.39,8.77372425]
[1736188552518,8.77372425,219.45,219.38,8.77372425]
[1736188553929,8.77372425,219.45,219.39,8.77372425]
[1736188554807,2.12,219.46,219.37,20.0]
[1736188554808,8.77372425,219.43,219.37,20.0]
[1736188556937,2.12,219.42,219.38,8.77372425]
[1736188557234,2.12,219.41,219.38,8.77372425]
[1736188557535,2.12,219.41,219.4,8.77372425]
[1736188558029,2.12,219.41,219.39,8.77372425]
[1736188559033,8.77372425,219.46,219.39,8.77372425]
[1736188559328,2.12,219.45,219.39,8.77372425]
[1736188560222,2.12,219.45,219.4,8.77372425]
[1736188560418,8.77372425,219.48,219.41,8.77372425]
[1736188560625,2.12,219.47,219.42,20.0]
[1736188560828,2.12,219.47,219.46,8.77372425]
[1736188561331,9.74962425,219.56,219.46,8.77372425]
[1736188561523,8.77372425,219.57,219.5,8.77372425]
[1736188561724,25.896884,219.56,219.51,8.77372425]
[1736188561924,23.776884,219.56,219.51,8.77372425]
[1736188562234,2.12,219.55,219.5,8.77372425]
[1736188563034,2.12,219.55,219.49,8.77372425]
[1736188564932,2.12,219.55,219.51,8.77372425]
[1736188565800,2.12,219.55,219.53,8.77372425]
[1736188566530,20.0,219.59,219.53,8.77372425]
[1736188566731,2.12,219.58,219.53,8.77372425]
[1736188567434,10.89372425,219.58,219.52,8.77372425]
[1736188568130,23.776884,219.57,219.43,7.8725582]
[1736188568340,23.776884,219.57,219.43,17.4396]
[1736188568341,8.77372425,219.53,219.43,17.4396]
[1736188568519,8.77372425,219.53,219.46,8.77372425]
[1736188568725,8.77372425,219.55,219.48,8.77372425]
[1736188569038,8.77372425,219.56,219.49,8.77372425]
[1736188569634,23.776884,219.57,219.51,8.77372425]
[1736188569635,32.55060825,219.57,219.51,8.77372425]
[1736188569934,2.12,219.58,219.52,8.77372425]
[1736188570138,2.12,219.57,219.55,8.77372425]
[1736188571210,2.12,219.57,219.54,8.77372425]
[1736188571922,2.12,219.57,219.53,8.77372425]
[1736188572646,2.12,219.57,219.52,20.0]
[1736188572812,2.12,219.57,219.51,8.77372425]
[1736188573013,10.89372425,219.57,219.51,8.77372425]
[1736188573508,2.12,219.57,219.49,1.518]
[1736188573712,10.89372425,219.57,219.51,8.77372425]
[1736188573931,2.12,219.57,219.51,8.77372425]
[1736188574333,2.12,219.57,219.52,8.77372425]
[1736188574723,2.12,219.57,219.49,1.518]
[1736188574724,2.12,219.57,219.51,8.77372425]
[1736188575846,10.89372425,219.57,219.51,8.77372425]
[1736188576442,2.12,219.57,219.51,8.77372425]
[1736188577631,2.12,219.57,219.52,8.77372425]
[1736188580550,2.12,219.56,219.53,8.77372425]
[1736188580717,8.77372425,219.6,219.53,8.77372425]
[1736188581053,2.12,219.59,219.54,8.77372425]
[1736188583357,10.89372425,219.59,219.53,8.77372425]
[1736188584055,10.89372425,219.59,219.49,12.9075]
[1736188584227,10.89372425,219.59,219.52,8.77372425]
[1736188584421,2.12,219.58,219.52,8.77372425]
[1736188584945,2.12,219.58,219.53,8.77372425]
[1736188586827,2.12,219.58,219.54,8.77372425]
[1736188587251,2.12,219.58,219.55,8.77372425]
[1736188587424,2.12,219.58,219.56,8.77372425]
[1736188587630,2.12,219.61,219.57,8.77372425]
[1736188587848,2.12,219.61,219.59,8.77372425]
[1736188588156,2.12,219.61,219.6,8.77372425]
[1736188588354,2.12,219.64,219.6,8.77372425]
[1736188588526,2.12,219.64,219.62,8.77372425]
[1736188589275,2.12,219.64,219.61,8.77372425]
[1736188589446,2.12,219.64,219.59,8.77372425]
[1736188589866,2.12,219.64,219.6,8.77372425]
[1736188591878,2.12,219.64,219.61,8.77372425]
[1736188592054,2.12,219.64,219.62,8.77372425]
[1736188592875,2.12,219.64,219.61,8.77372425]
[1736188593050,2.12,219.64,219.6,8.77372425]
[1736188593367,2.12,219.64,219.57,1.6236]
[1736188593538,2.12,219.64,219.59,8.77372425]
[1736188593959,10.89372425,219.64,219.57,1.6236]
[1736188594144,8.77372425,219.62,219.55,28.77372425]
[1736188594350,8.77372425,219.63,219.57,8.77372425]
[1736188595072,2.12,219.64,219.58,8.77372425]
[1736188595276,2.12,219.64,219.6,8.77372425]
[1736188595639,2.12,219.64,219.61,8.77372425]
[1736188596257,2.12,219.64,219.6,8.77372425]
[1736188596960,2.12,219.64,219.61,8.77372425]
[1736188598281,8.77372425,219.67,219.61,8.77372425]
[1736188598484,2.12,219.66,219.61,8.77372425]
[1736188599092,8.77372425,219.68,219.61,8.77372425]
[1736188599251,2.12,219.67,219.61,8.77372425]
[1736188599982,8.77372425,219.66,219.55,20.0]
[1736188600185,8.77372425,219.65,219.59,8.77372425]
[1736188602468,8.77372425,219.66,219.6,8.77372425]
[1736188605498,6.3921,219.74,219.64,8.77372425]
[1736188605798,8.77372425,219.72,219.65,8.77372425]
[1736188606172,10.89372425,219.73,219.65,8.77372425]
[1736188607591,8.77372425,219.73,219.65,8.77372425]
[1736188607766,2.12,219.72,219.65,8.77372425]
[1736188607967,10.89372425,219.72,219.65,8.77372425]
[1736188608578,10.89372425,219.72,219.59,1.6211]
[1736188608579,32.55060825,219.71,219.59,21.6211]
[1736188608784,8.77372425,219.69,219.62,8.77372425]
[1736188608991,23.776884,219.71,219.63,8.77372425]
[1736188609190,32.55060825,219.71,219.63,8.77372425]
[1736188609399,8.77372425,219.7,219.63,8.77372425]
[1736188610300,8.77372425,219.69,219.62,8.77372425]
[1736188612203,8.77372425,219.69,219.61,8.77372425]
[1736188615004,8.77372425,219.69,219.59,21.6211]
[1736188615005,8.77372425,219.69,219.62,8.77372425]
[1736188618896,8.77372425,219.68,219.62,8.77372425]
[1736188619586,8.77372425,219.67,219.6,8.77372425]
[1736188619787,8.77372425,219.63,219.54,1.6386]
[1736188620030,10.89372425,219.62,219.55,8.77372425]
[1736188620212,2.12,219.61,219.56,28.77372425]
[1736188620507,2.12,219.61,219.58,8.77372425]
[1736188621492,2.12,219.61,219.59,8.77372425]
[1736188623222,2.12,219.61,219.58,8.77372425]
[1736188623389,2.12,219.61,219.59,8.77372425]
[1736188623804,2.12,219.61,219.56,20.0]
[1736188623805,2.12,219.61,219.58,8.77372425]
[1736188626039,2.12,219.61,219.6,8.77372425]
[1736188626209,2.12,219.66,219.6,8.77372425]
[1736188626548,2.12,219.67,219.63,8.77372425]
[1736188627634,0.9759,219.73,219.65,8.77372425]
[1736188627823,2.12,219.67,219.65,8.77372425]
[1736188629513,2.12,219.67,219.64,8.77372425]
[1736188630940,2.12,219.67,219.63,8.77372425]
[1736188631742,2.12,219.67,219.64,8.77372425]
[1736188633346,2.12,219.67,219.65,8.77372425]
[1736188634352,2.12,219.67,219.64,8.77372425]
[1736188635147,6.3921,219.74,219.66,8.77372425]
[1736188635448,2.12,219.76,219.71,8.77372425]
[1736188637054,2.12,219.75,219.71,8.77372425]
[1736188637352,8.77372425,219.77,219.71,8.77372425]
[1736188637650,2.12,219.76,219.71,8.77372425]
[1736188637835,8.77372425,219.74,219.68,8.77372425]
[1736188638232,8.77372425,219.75,219.69,8.77372425]
[1736188639178,10.89372425,219.77,219.7,8.77372425]
[1736188639847,10.89372425,219.77,219.71,8.77372425]
[1736188640472,10.89372425,219.77,219.66,8.1092]
[1736188640473,8.77372425,219.76,219.7,8.77372425]
[1736188641755,2.12,219.77,219.66,8.1092]